Workbook

Sheet Tabelle1
F2: max Dowdown | H2: =MAX(B4:B1584) -> 1.982377212
A3: Date | B3: Performanse | C3: max | F3: =MIN(D:D) -> -0.5276313481 | H3: =MIN(B4:B1584) -> 1
A4: 2004-12-29 | B4: 1 | C4: =MAX(B4,C3) -> 1 | F4: =max_drawdown(B4:B1584) -> -0.4044205844 | G4: vba code
A5: 2004-12-30 | B5: 1.002679389 | C5: =MAX(B5,C4) -> 1.002679389 | D5: =LN(B5/C5) -> 0
A6: 2004-12-31 | B6: 1.003953355 | C6: =MAX(B6,C5) -> 1.003953355 | D6: =LN(B6/C6) -> 0
A7: 2005-01-01 | B7: 1.003953355 | C7: =MAX(B7,C6) -> 1.003953355 | D7: =LN(B7/C7) -> 0
A8: 2005-01-02 | B8: 1.003953355 | C8: =MAX(B8,C7) -> 1.003953355 | D8: =LN(B8/C8) -> 0
A9: 2005-01-03 | B9: 1.007025878 | C9: =MAX(B9,C8) -> 1.007025878 | D9: =LN(B9/C9) -> 0
A10: 2005-01-04 | B10: 1.007948929 | C10: =MAX(B10,C9) -> 1.007948929 | D10: =LN(B10/C10) -> 0
A11: 2005-01-05 | B11: 1.009523387 | C11: =MAX(B11,C10) -> 1.009523387 | D11: =LN(B11/C11) -> 0
A12: 2005-01-06 | B12: 1.009523387 | C12: =MAX(B12,C11) -> 1.009523387 | D12: =LN(B12/C12) -> 0
A13: 2005-01-07 | B13: 1.016363154 | C13: =MAX(B13,C12) -> 1.016363154 | D13: =LN(B13/C13) -> 0
A14: 2005-01-08 | B14: 1.016363154 | C14: =MAX(B14,C13) -> 1.016363154 | D14: =LN(B14/C14) -> 0
A15: 2005-01-09 | B15: 1.016363154 | C15: =MAX(B15,C14) -> 1.016363154 | D15: =LN(B15/C15) -> 0
A16: 2005-01-10 | B16: 1.016984704 | C16: =MAX(B16,C15) -> 1.016984704 | D16: =LN(B16/C16) -> 0
A17: 2005-01-11 | B17: 1.025397152 | C17: =MAX(B17,C16) -> 1.025397152 | D17: =LN(B17/C17) -> 0
A18: 2005-01-12 | B18: 1.022821809 | C18: =MAX(B18,C17) -> 1.025397152 | D18: =LN(B18/C18) -> -0.002514716264
A19: 2005-01-13 | B19: 1.026692197 | C19: =MAX(B19,C18) -> 1.026692197 | D19: =LN(B19/C19) -> 0
A20: 2005-01-14 | B20: 1.015708724 | C20: =MAX(B20,C19) -> 1.026692197 | D20: =LN(B20/C20) -> -0.01075555581
A21: 2005-01-15 | B21: 1.015708724 | C21: =MAX(B21,C20) -> 1.026692197 | D21: =LN(B21/C21) -> -0.01075555581
A22: 2005-01-16 | B22: 1.015708724 | C22: =MAX(B22,C21) -> 1.026692197 | D22: =LN(B22/C22) -> -0.01075555581
A23: 2005-01-17 | B23: 1.033114835 | C23: =MAX(B23,C22) -> 1.033114835 | D23: =LN(B23/C23) -> 0
A24: 2005-01-18 | B24: 1.036846538 | C24: =MAX(B24,C23) -> 1.036846538 | D24: =LN(B24/C24) -> 0
A25: 2005-01-19 | B25: 1.042214875 | C25: =MAX(B25,C24) -> 1.042214875 | D25: =LN(B25/C25) -> 0
A26: 2005-01-20 | B26: 1.037462654 | C26: =MAX(B26,C25) -> 1.042214875 | D26: =LN(B26/C26) -> -0.004570159805
A27: 2005-01-21 | B27: 1.03606114 | C27: =MAX(B27,C26) -> 1.042214875 | D27: =LN(B27/C27) -> -0.005921978976
A28: 2005-01-22 | B28: 1.03606114 | C28: =MAX(B28,C27) -> 1.042214875 | D28: =LN(B28/C28) -> -0.005921978976
A29: 2005-01-23 | B29: 1.03606114 | C29: =MAX(B29,C28) -> 1.042214875 | D29: =LN(B29/C29) -> -0.005921978976
A30: 2005-01-24 | B30: 1.030565787 | C30: =MAX(B30,C29) -> 1.042214875 | D30: =LN(B30/C30) -> -0.01124017699
A31: 2005-01-25 | B31: 1.021796461 | C31: =MAX(B31,C30) -> 1.042214875 | D31: =LN(B31/C31) -> -0.01978582164
A32: 2005-01-26 | B32: 1.028738689 | C32: =MAX(B32,C31) -> 1.042214875 | D32: =LN(B32/C32) -> -0.01301465816
A33: 2005-01-27 | B33: 1.038212563 | C33: =MAX(B33,C32) -> 1.042214875 | D33: =LN(B33/C33) -> -0.003847590933
A34: 2005-01-28 | B34: 1.036594434 | C34: =MAX(B34,C33) -> 1.042214875 | D34: =LN(B34/C34) -> -0.005407378654
A35: 2005-01-29 | B35: 1.036594434 | C35: =MAX(B35,C34) -> 1.042214875 | D35: =LN(B35/C35) -> -0.005407378654
A36: 2005-01-30 | B36: 1.036594434 | C36: =MAX(B36,C35) -> 1.042214875 | D36: =LN(B36/C36) -> -0.005407378654
A37: 2005-01-31 | B37: 1.037500784 | C37: =MAX(B37,C36) -> 1.042214875 | D37: =LN(B37/C37) -> -0.00453340762
A38: 2005-02-01 | B38: 1.04768488 | C38: =MAX(B38,C37) -> 1.04768488 | D38: =LN(B38/C38) -> 0
A39: 2005-02-02 | B39: 1.051245313 | C39: =MAX(B39,C38) -> 1.051245313 | D39: =LN(B39/C39) -> 0
A40: 2005-02-03 | B40: 1.052303824 | C40: =MAX(B40,C39) -> 1.052303824 | D40: =LN(B40/C40) -> 0
A41: 2005-02-04 | B41: 1.055027125 | C41: =MAX(B41,C40) -> 1.055027125 | D41: =LN(B41/C41) -> 0
A42: 2005-02-05 | B42: 1.055027125 | C42: =MAX(B42,C41) -> 1.055027125 | D42: =LN(B42/C42) -> 0
A43: 2005-02-06 | B43: 1.055027125 | C43: =MAX(B43,C42) -> 1.055027125 | D43: =LN(B43/C43) -> 0
A44: 2005-02-07 | B44: 1.066157158 | C44: =MAX(B44,C43) -> 1.066157158 | D44: =LN(B44/C44) -> 0
A45: 2005-02-08 | B45: 1.07395675 | C45: =MAX(B45,C44) -> 1.07395675 | D45: =LN(B45/C45) -> 0
A46: 2005-02-09 | B46: 1.079917698 | C46: =MAX(B46,C45) -> 1.079917698 | D46: =LN(B46/C46) -> 0
A47: 2005-02-10 | B47: 1.068705172 | C47: =MAX(B47,C46) -> 1.079917698 | D47: =LN(B47/C47) -> -0.01043703688
A48: 2005-02-11 | B48: 1.073681112 | C48: =MAX(B48,C47) -> 1.079917698 | D48: =LN(B48/C48) -> -0.005791796648
A49: 2005-02-12 | B49: 1.073681669 | C49: =MAX(B49,C48) -> 1.079917698 | D49: =LN(B49/C49) -> -0.005791278059
A50: 2005-02-13 | B50: 1.073682226 | C50: =MAX(B50,C49) -> 1.079917698 | D50: =LN(B50/C50) -> -0.00579075947
A51: 2005-02-14 | B51: 1.073176285 | C51: =MAX(B51,C50) -> 1.079917698 | D51: =LN(B51/C51) -> -0.006262090782
A52: 2005-02-15 | B52: 1.073765232 | C52: =MAX(B52,C51) -> 1.079917698 | D52: =LN(B52/C52) -> -0.005713452454
A53: 2005-02-16 | B53: 1.071436138 | C53: =MAX(B53,C52) -> 1.079917698 | D53: =LN(B53/C53) -> -0.00788489907
A54: 2005-02-17 | B54: 1.069263243 | C54: =MAX(B54,C53) -> 1.079917698 | D54: =LN(B54/C54) -> -0.009914979847
A55: 2005-02-18 | B55: 1.063685853 | C55: =MAX(B55,C54) -> 1.079917698 | D55: =LN(B55/C55) -> -0.01514473615
A56: 2005-02-19 | B56: 1.063685992 | C56: =MAX(B56,C55) -> 1.079917698 | D56: =LN(B56/C56) -> -0.01514460529
A57: 2005-02-20 | B57: 1.063686132 | C57: =MAX(B57,C56) -> 1.079917698 | D57: =LN(B57/C57) -> -0.01514447442
A58: 2005-02-21 | B58: 1.062114273 | C58: =MAX(B58,C57) -> 1.079917698 | D58: =LN(B58/C58) -> -0.01662331393
A59: 2005-02-22 | B59: 1.064087043 | C59: =MAX(B59,C58) -> 1.079917698 | D59: =LN(B59/C59) -> -0.01476763833
A60: 2005-02-23 | B60: 1.047432669 | C60: =MAX(B60,C59) -> 1.079917698 | D60: =LN(B60/C60) -> -0.03054273958
A61: 2005-02-24 | B61: 1.047499915 | C61: =MAX(B61,C60) -> 1.079917698 | D61: =LN(B61/C61) -> -0.03047854094
A62: 2005-02-25 | B62: 1.05583459 | C62: =MAX(B62,C61) -> 1.079917698 | D62: =LN(B62/C62) -> -0.02255329778
A63: 2005-02-26 | B63: 1.05583459 | C63: =MAX(B63,C62) -> 1.079917698 | D63: =LN(B63/C63) -> -0.02255329778
A64: 2005-02-27 | B64: 1.05583459 | C64: =MAX(B64,C63) -> 1.079917698 | D64: =LN(B64/C64) -> -0.02255329778
A65: 2005-02-28 | B65: 1.071384373 | C65: =MAX(B65,C64) -> 1.079917698 | D65: =LN(B65/C65) -> -0.007933214025
A66: 2005-03-01 | B66: 1.064260487 | C66: =MAX(B66,C65) -> 1.079917698 | D66: =LN(B66/C66) -> -0.014604653
A67: 2005-03-02 | B67: 1.072463505 | C67: =MAX(B67,C66) -> 1.079917698 | D67: =LN(B67/C67) -> -0.006926489705
A68: 2005-03-03 | B68: 1.073617628 | C68: =MAX(B68,C67) -> 1.079917698 | D68: =LN(B68/C68) -> -0.005850926104
A69: 2005-03-04 | B69: 1.074917907 | C69: =MAX(B69,C68) -> 1.079917698 | D69: =LN(B69/C69) -> -0.004640539525
A70: 2005-03-05 | B70: 1.074917907 | C70: =MAX(B70,C69) -> 1.079917698 | D70: =LN(B70/C70) -> -0.004640539525
A71: 2005-03-06 | B71: 1.074917907 | C71: =MAX(B71,C70) -> 1.079917698 | D71: =LN(B71/C71) -> -0.004640539525
A72: 2005-03-07 | B72: 1.082033735 | C72: =MAX(B72,C71) -> 1.082033735 | D72: =LN(B72/C72) -> 0
A73: 2005-03-08 | B73: 1.082395813 | C73: =MAX(B73,C72) -> 1.082395813 | D73: =LN(B73/C73) -> 0
A74: 2005-03-09 | B74: 1.074466969 | C74: =MAX(B74,C73) -> 1.082395813 | D74: =LN(B74/C74) -> -0.007352233782
A75: 2005-03-10 | B75: 1.061272119 | C75: =MAX(B75,C74) -> 1.082395813 | D75: =LN(B75/C75) -> -0.01970862888
A76: 2005-03-11 | B76: 1.055815749 | C76: =MAX(B76,C75) -> 1.082395813 | D76: =LN(B76/C76) -> -0.02486323939
A77: 2005-03-12 | B77: 1.055815749 | C77: =MAX(B77,C76) -> 1.082395813 | D77: =LN(B77/C77) -> -0.02486323939
A78: 2005-03-13 | B78: 1.055815749 | C78: =MAX(B78,C77) -> 1.082395813 | D78: =LN(B78/C78) -> -0.02486323939
A79: 2005-03-14 | B79: 1.054179557 | C79: =MAX(B79,C78) -> 1.082395813 | D79: =LN(B79/C79) -> -0.02641413657
A80: 2005-03-15 | B80: 1.053051103 | C80: =MAX(B80,C79) -> 1.082395813 | D80: =LN(B80/C80) -> -0.02748516641
A81: 2005-03-16 | B81: 1.048599984 | C81: =MAX(B81,C80) -> 1.082395813 | D81: =LN(B81/C81) -> -0.03172100407
A82: 2005-03-17 | B82: 1.040104662 | C82: =MAX(B82,C81) -> 1.082395813 | D82: =LN(B82/C82) -> -0.0398555846
A83: 2005-03-18 | B83: 1.040601609 | C83: =MAX(B83,C82) -> 1.082395813 | D83: =LN(B83/C83) -> -0.0393779138
A84: 2005-03-19 | B84: 1.040601609 | C84: =MAX(B84,C83) -> 1.082395813 | D84: =LN(B84/C84) -> -0.0393779138
A85: 2005-03-20 | B85: 1.040601609 | C85: =MAX(B85,C84) -> 1.082395813 | D85: =LN(B85/C85) -> -0.0393779138
A86: 2005-03-21 | B86: 1.049482543 | C86: =MAX(B86,C85) -> 1.082395813 | D86: =LN(B86/C86) -> -0.03087970298
A87: 2005-03-22 | B87: 1.045516141 | C87: =MAX(B87,C86) -> 1.082395813 | D87: =LN(B87/C87) -> -0.03466625115
A88: 2005-03-23 | B88: 1.044535433 | C88: =MAX(B88,C87) -> 1.082395813 | D88: =LN(B88/C88) -> -0.03560470441
A89: 2005-03-24 | B89: 1.044032463 | C89: =MAX(B89,C88) -> 1.082395813 | D89: =LN(B89/C89) -> -0.03608634591
A90: 2005-03-25 | B90: 1.044482267 | C90: =MAX(B90,C89) -> 1.082395813 | D90: =LN(B90/C90) -> -0.03565560543
A91: 2005-03-26 | B91: 1.044482267 | C91: =MAX(B91,C90) -> 1.082395813 | D91: =LN(B91/C91) -> -0.03565560543
A92: 2005-03-27 | B92: 1.044482267 | C92: =MAX(B92,C91) -> 1.082395813 | D92: =LN(B92/C92) -> -0.03565560543
A93: 2005-03-28 | B93: 1.044482267 | C93: =MAX(B93,C92) -> 1.082395813 | D93: =LN(B93/C93) -> -0.03565560543
A94: 2005-03-29 | B94: 1.050129418 | C94: =MAX(B94,C93) -> 1.082395813 | D94: =LN(B94/C94) -> -0.03026351772
A95: 2005-03-30 | B95: 1.039699624 | C95: =MAX(B95,C94) -> 1.082395813 | D95: =LN(B95/C95) -> -0.04024508157
A96: 2005-03-31 | B96: 1.045694368 | C96: =MAX(B96,C95) -> 1.082395813 | D96: =LN(B96/C96) -> -0.03449579789
A97: 2005-04-01 | B97: 1.053231673 | C97: =MAX(B97,C96) -> 1.082395813 | D97: =LN(B97/C97) -> -0.02731370806
A98: 2005-04-02 | B98: 1.053231673 | C98: =MAX(B98,C97) -> 1.082395813 | D98: =LN(B98/C98) -> -0.02731370806
A99: 2005-04-03 | B99: 1.053231673 | C99: =MAX(B99,C98) -> 1.082395813 | D99: =LN(B99/C99) -> -0.02731370806
A100: 2005-04-04 | B100: 1.055453631 | C100: =MAX(B100,C99) -> 1.082395813 | D100: =LN(B100/C100) -> -0.02520627303
A101: 2005-04-05 | B101: 1.061181974 | C101: =MAX(B101,C100) -> 1.082395813 | D101: =LN(B101/C101) -> -0.01979357239
A102: 2005-04-06 | B102: 1.069333887 | C102: =MAX(B102,C101) -> 1.082395813 | D102: =LN(B102/C102) -> -0.01214101019
A103: 2005-04-07 | B103: 1.067281417 | C103: =MAX(B103,C102) -> 1.082395813 | D103: =LN(B103/C103) -> -0.01406224615
A104: 2005-04-08 | B104: 1.072164206 | C104: =MAX(B104,C103) -> 1.082395813 | D104: =LN(B104/C104) -> -0.009497701125
A105: 2005-04-09 | B105: 1.072164206 | C105: =MAX(B105,C104) -> 1.082395813 | D105: =LN(B105/C105) -> -0.009497701125
A106: 2005-04-10 | B106: 1.072164206 | C106: =MAX(B106,C105) -> 1.082395813 | D106: =LN(B106/C106) -> -0.009497701125
A107: 2005-04-11 | B107: 1.067087017 | C107: =MAX(B107,C106) -> 1.082395813 | D107: =LN(B107/C107) -> -0.01424440739
A108: 2005-04-12 | B108: 1.057076645 | C108: =MAX(B108,C107) -> 1.082395813 | D108: =LN(B108/C108) -> -0.02366971373
A109: 2005-04-13 | B109: 1.058640152 | C109: =MAX(B109,C108) -> 1.082395813 | D109: =LN(B109/C109) -> -0.02219172049
A110: 2005-04-14 | B110: 1.055897744 | C110: =MAX(B110,C109) -> 1.082395813 | D110: =LN(B110/C110) -> -0.02478558275
A111: 2005-04-15 | B111: 1.046264466 | C111: =MAX(B111,C110) -> 1.082395813 | D111: =LN(B111/C111) -> -0.03395076015
A112: 2005-04-16 | B112: 1.046264466 | C112: =MAX(B112,C111) -> 1.082395813 | D112: =LN(B112/C112) -> -0.03395076015
A113: 2005-04-17 | B113: 1.046264605 | C113: =MAX(B113,C112) -> 1.082395813 | D113: =LN(B113/C113) -> -0.03395062711
A114: 2005-04-18 | B114: 1.026256874 | C114: =MAX(B114,C113) -> 1.082395813 | D114: =LN(B114/C114) -> -0.05325884985
A115: 2005-04-19 | B115: 1.011374784 | C115: =MAX(B115,C114) -> 1.082395813 | D115: =LN(B115/C115) -> -0.06786635173
A116: 2005-04-20 | B116: 1.01686758 | C116: =MAX(B116,C115) -> 1.082395813 | D116: =LN(B116/C116) -> -0.06245002716
A117: 2005-04-21 | B117: 1.008962936 | C117: =MAX(B117,C116) -> 1.082395813 | D117: =LN(B117/C117) -> -0.07025392226
A118: 2005-04-22 | B118: 1.019672394 | C118: =MAX(B118,C117) -> 1.082395813 | D118: =LN(B118/C118) -> -0.05969553633
A119: 2005-04-23 | B119: 1.019672394 | C119: =MAX(B119,C118) -> 1.082395813 | D119: =LN(B119/C119) -> -0.05969553633
A120: 2005-04-24 | B120: 1.019672394 | C120: =MAX(B120,C119) -> 1.082395813 | D120: =LN(B120/C120) -> -0.05969553633
A121: 2005-04-25 | B121: 1.021010264 | C121: =MAX(B121,C120) -> 1.082395813 | D121: =LN(B121/C121) -> -0.05838433722
A122: 2005-04-26 | B122: 1.032434663 | C122: =MAX(B122,C121) -> 1.082395813 | D122: =LN(B122/C122) -> -0.04725716656
A123: 2005-04-27 | B123: 1.026769545 | C123: =MAX(B123,C122) -> 1.082395813 | D123: =LN(B123/C123) -> -0.05275942058
A124: 2005-04-28 | B124: 1.027947991 | C124: =MAX(B124,C123) -> 1.082395813 | D124: =LN(B124/C124) -> -0.0516123561
A125: 2005-04-29 | B125: 1.018551386 | C125: =MAX(B125,C124) -> 1.082395813 | D125: =LN(B125/C125) -> -0.06079552178
A126: 2005-04-30 | B126: 1.018551386 | C126: =MAX(B126,C125) -> 1.082395813 | D126: =LN(B126/C126) -> -0.06079552178
A127: 2005-05-01 | B127: 1.018551386 | C127: =MAX(B127,C126) -> 1.082395813 | D127: =LN(B127/C127) -> -0.06079552178
A128: 2005-05-02 | B128: 1.021931621 | C128: =MAX(B128,C127) -> 1.082395813 | D128: =LN(B128/C128) -> -0.0574823474
A129: 2005-05-03 | B129: 1.032353598 | C129: =MAX(B129,C128) -> 1.082395813 | D129: =LN(B129/C129) -> -0.04733568745
A130: 2005-05-04 | B130: 1.029640758 | C130: =MAX(B130,C129) -> 1.082395813 | D130: =LN(B130/C130) -> -0.04996696668
A131: 2005-05-05 | B131: 1.029640758 | C131: =MAX(B131,C130) -> 1.082395813 | D131: =LN(B131/C131) -> -0.04996696668
A132: 2005-05-06 | B132: 1.036740987 | C132: =MAX(B132,C131) -> 1.082395813 | D132: =LN(B132/C132) -> -0.04309480256
A133: 2005-05-07 | B133: 1.036740987 | C133: =MAX(B133,C132) -> 1.082395813 | D133: =LN(B133/C133) -> -0.04309480256
A134: 2005-05-08 | B134: 1.036740987 | C134: =MAX(B134,C133) -> 1.082395813 | D134: =LN(B134/C134) -> -0.04309480256
A135: 2005-05-09 | B135: 1.04087799 | C135: =MAX(B135,C134) -> 1.082395813 | D135: =LN(B135/C135) -> -0.03911235176
A136: 2005-05-10 | B136: 1.052901134 | C136: =MAX(B136,C135) -> 1.082395813 | D136: =LN(B136/C136) -> -0.02762759088
A137: 2005-05-11 | B137: 1.041576135 | C137: =MAX(B137,C136) -> 1.082395813 | D137: =LN(B137/C137) -> -0.03844184907
A138: 2005-05-12 | B138: 1.044263122 | C138: =MAX(B138,C137) -> 1.082395813 | D138: =LN(B138/C138) -> -0.03586543931
A139: 2005-05-13 | B139: 1.045218379 | C139: =MAX(B139,C138) -> 1.082395813 | D139: =LN(B139/C139) -> -0.03495109117
A140: 2005-05-14 | B140: 1.045218379 | C140: =MAX(B140,C139) -> 1.082395813 | D140: =LN(B140/C140) -> -0.03495109117
A141: 2005-05-15 | B141: 1.045218379 | C141: =MAX(B141,C140) -> 1.082395813 | D141: =LN(B141/C141) -> -0.03495109117
A142: 2005-05-16 | B142: 1.045218379 | C142: =MAX(B142,C141) -> 1.082395813 | D142: =LN(B142/C142) -> -0.03495109117
A143: 2005-05-17 | B143: 1.048840827 | C143: =MAX(B143,C142) -> 1.082395813 | D143: =LN(B143/C143) -> -0.03149134935
A144: 2005-05-18 | B144: 1.050796631 | C144: =MAX(B144,C143) -> 1.082395813 | D144: =LN(B144/C144) -> -0.02962835664
A145: 2005-05-19 | B145: 1.063300403 | C145: =MAX(B145,C144) -> 1.082395813 | D145: =LN(B145/C145) -> -0.01779927042
A146: 2005-05-20 | B146: 1.068544243 | C146: =MAX(B146,C145) -> 1.082395813 | D146: =LN(B146/C146) -> -0.01287972761
A147: 2005-05-21 | B147: 1.068544243 | C147: =MAX(B147,C146) -> 1.082395813 | D147: =LN(B147/C147) -> -0.01287972761
A148: 2005-05-22 | B148: 1.068544243 | C148: =MAX(B148,C147) -> 1.082395813 | D148: =LN(B148/C148) -> -0.01287972761
A149: 2005-05-23 | B149: 1.07012823 | C149: =MAX(B149,C148) -> 1.082395813 | D149: =LN(B149/C149) -> -0.01139844675
A150: 2005-05-24 | B150: 1.077679219 | C150: =MAX(B150,C149) -> 1.082395813 | D150: =LN(B150/C150) -> -0.004367071401
A151: 2005-05-25 | B151: 1.079144817 | C151: =MAX(B151,C150) -> 1.082395813 | D151: =LN(B151/C151) -> -0.003008038083
A152: 2005-05-26 | B152: 1.079241233 | C152: =MAX(B152,C151) -> 1.082395813 | D152: =LN(B152/C152) -> -0.002918697218
A153: 2005-05-27 | B153: 1.083360835 | C153: =MAX(B153,C152) -> 1.083360835 | D153: =LN(B153/C153) -> 0
A154: 2005-05-28 | B154: 1.083360835 | C154: =MAX(B154,C153) -> 1.083360835 | D154: =LN(B154/C154) -> 0
A155: 2005-05-29 | B155: 1.083360835 | C155: =MAX(B155,C154) -> 1.083360835 | D155: =LN(B155/C155) -> 0
A156: 2005-05-30 | B156: 1.088030316 | C156: =MAX(B156,C155) -> 1.088030316 | D156: =LN(B156/C156) -> 0
A157: 2005-05-31 | B157: 1.094674025 | C157: =MAX(B157,C156) -> 1.094674025 | D157: =LN(B157/C157) -> 0
A158: 2005-06-01 | B158: 1.105663205 | C158: =MAX(B158,C157) -> 1.105663205 | D158: =LN(B158/C158) -> 0
A159: 2005-06-02 | B159: 1.116360174 | C159: =MAX(B159,C158) -> 1.116360174 | D159: =LN(B159/C159) -> 0
A160: 2005-06-03 | B160: 1.118455758 | C160: =MAX(B160,C159) -> 1.118455758 | D160: =LN(B160/C160) -> 0
A161: 2005-06-04 | B161: 1.118455619 | C161: =MAX(B161,C160) -> 1.118455758 | D161: =LN(B161/C161) -> -1.244572896e-07
A162: 2005-06-05 | B162: 1.118455619 | C162: =MAX(B162,C161) -> 1.118455758 | D162: =LN(B162/C162) -> -1.244572896e-07
A163: 2005-06-06 | B163: 1.11495019 | C163: =MAX(B163,C162) -> 1.118455758 | D163: =LN(B163/C163) -> -0.003139215302
A164: 2005-06-07 | B164: 1.11813948 | C164: =MAX(B164,C163) -> 1.118455758 | D164: =LN(B164/C164) -> -0.0002828216259
A165: 2005-06-08 | B165: 1.115242404 | C165: =MAX(B165,C164) -> 1.118455758 | D165: =LN(B165/C165) -> -0.002877163049
A166: 2005-06-09 | B166: 1.11502348 | C166: =MAX(B166,C165) -> 1.118455758 | D166: =LN(B166/C166) -> -0.003073483643
A167: 2005-06-10 | B167: 1.122871301 | C167: =MAX(B167,C166) -> 1.122871301 | D167: =LN(B167/C167) -> 0
A168: 2005-06-11 | B168: 1.122871301 | C168: =MAX(B168,C167) -> 1.122871301 | D168: =LN(B168/C168) -> 0
A169: 2005-06-12 | B169: 1.122871301 | C169: =MAX(B169,C168) -> 1.122871301 | D169: =LN(B169/C169) -> 0
A170: 2005-06-13 | B170: 1.128674484 | C170: =MAX(B170,C169) -> 1.128674484 | D170: =LN(B170/C170) -> 0
A171: 2005-06-14 | B171: 1.140226892 | C171: =MAX(B171,C170) -> 1.140226892 | D171: =LN(B171/C171) -> 0
A172: 2005-06-15 | B172: 1.141777711 | C172: =MAX(B172,C171) -> 1.141777711 | D172: =LN(B172/C172) -> 0
A173: 2005-06-16 | B173: 1.147491709 | C173: =MAX(B173,C172) -> 1.147491709 | D173: =LN(B173/C173) -> 0
A174: 2005-06-17 | B174: 1.147654113 | C174: =MAX(B174,C173) -> 1.147654113 | D174: =LN(B174/C174) -> 0
A175: 2005-06-18 | B175: 1.147654113 | C175: =MAX(B175,C174) -> 1.147654113 | D175: =LN(B175/C175) -> 0
A176: 2005-06-19 | B176: 1.147654113 | C176: =MAX(B176,C175) -> 1.147654113 | D176: =LN(B176/C176) -> 0
A177: 2005-06-20 | B177: 1.147000097 | C177: =MAX(B177,C176) -> 1.147654113 | D177: =LN(B177/C177) -> -0.0005700341445
A178: 2005-06-21 | B178: 1.148601445 | C178: =MAX(B178,C177) -> 1.148601445 | D178: =LN(B178/C178) -> 0
A179: 2005-06-22 | B179: 1.154073966 | C179: =MAX(B179,C178) -> 1.154073966 | D179: =LN(B179/C179) -> 0
A180: 2005-06-23 | B180: 1.156678234 | C180: =MAX(B180,C179) -> 1.156678234 | D180: =LN(B180/C180) -> 0
A181: 2005-06-24 | B181: 1.154287739 | C181: =MAX(B181,C180) -> 1.156678234 | D181: =LN(B181/C181) -> -0.002068828145
A182: 2005-06-25 | B182: 1.154287739 | C182: =MAX(B182,C181) -> 1.156678234 | D182: =LN(B182/C182) -> -0.002068828145
A183: 2005-06-26 | B183: 1.154287739 | C183: =MAX(B183,C182) -> 1.156678234 | D183: =LN(B183/C183) -> -0.002068828145
A184: 2005-06-27 | B184: 1.149956705 | C184: =MAX(B184,C183) -> 1.156678234 | D184: =LN(B184/C184) -> -0.005828011668
A185: 2005-06-28 | B185: 1.139137112 | C185: =MAX(B185,C184) -> 1.156678234 | D185: =LN(B185/C185) -> -0.01528124855
A186: 2005-06-29 | B186: 1.151978141 | C186: =MAX(B186,C185) -> 1.156678234 | D186: =LN(B186/C186) -> -0.004071718515
A187: 2005-06-30 | B187: 1.154423261 | C187: =MAX(B187,C186) -> 1.156678234 | D187: =LN(B187/C187) -> -0.00195142692
A188: 2005-07-01 | B188: 1.15065542 | C188: =MAX(B188,C187) -> 1.156678234 | D188: =LN(B188/C188) -> -0.005220595104
A189: 2005-07-02 | B189: 1.15065542 | C189: =MAX(B189,C188) -> 1.156678234 | D189: =LN(B189/C189) -> -0.005220595104
A190: 2005-07-03 | B190: 1.15065542 | C190: =MAX(B190,C189) -> 1.156678234 | D190: =LN(B190/C190) -> -0.005220595104
A191: 2005-07-04 | B191: 1.158387253 | C191: =MAX(B191,C190) -> 1.158387253 | D191: =LN(B191/C191) -> 0
A192: 2005-07-05 | B192: 1.170122424 | C192: =MAX(B192,C191) -> 1.170122424 | D192: =LN(B192/C192) -> 0
A193: 2005-07-06 | B193: 1.174942579 | C193: =MAX(B193,C192) -> 1.174942579 | D193: =LN(B193/C193) -> 0
A194: 2005-07-07 | B194: 1.168936643 | C194: =MAX(B194,C193) -> 1.174942579 | D194: =LN(B194/C194) -> -0.005124794247
A195: 2005-07-08 | B195: 1.164603621 | C195: =MAX(B195,C194) -> 1.174942579 | D195: =LN(B195/C195) -> -0.008838487947
A196: 2005-07-09 | B196: 1.164603621 | C196: =MAX(B196,C195) -> 1.174942579 | D196: =LN(B196/C196) -> -0.008838487947
A197: 2005-07-10 | B197: 1.164603621 | C197: =MAX(B197,C196) -> 1.174942579 | D197: =LN(B197/C197) -> -0.008838487947
A198: 2005-07-11 | B198: 1.175308088 | C198: =MAX(B198,C197) -> 1.175308088 | D198: =LN(B198/C198) -> 0
A199: 2005-07-12 | B199: 1.173964708 | C199: =MAX(B199,C198) -> 1.175308088 | D199: =LN(B199/C199) -> -0.001143656386
A200: 2005-07-13 | B200: 1.167284745 | C200: =MAX(B200,C199) -> 1.175308088 | D200: =LN(B200/C200) -> -0.00684999524
A201: 2005-07-14 | B201: 1.17191839 | C201: =MAX(B201,C200) -> 1.175308088 | D201: =LN(B201/C201) -> -0.002888260407
... 1383 more rows

Sheet Tabelle2

Sheet Tabelle3
